bitfinex/quotes_ETHUSD_20240730
["timestamp","ask_amount","ask_price","bid_price","bid_amount"]
[1722352387522,2.677,3316.8,3316.4,3.01531]
[1722352387728,2.677,3316.8,3316.5,3.07549769]
[1722352388425,2.677,3316.8,3316.5,0.06029769]
[1722352388622,2.677,3316.8,3316.4,3.0756077]
[1722352389227,2.677,3316.8,3316.5,3.01517]
[1722352389423,2.677,3316.8,3316.6,3.32259677]
[1722352389978,0.04248895,3317.4,3316.6,3.32259677]
[1722352390133,0.59248895,3317.4,3316.6,3.32259677]
[1722352390329,0.59248895,3317.4,3316.6,0.30754677]
[1722352391227,0.59248895,3317.4,3316.6,3.32266677]
[1722352391432,0.55,3317.4,3316.7,0.6398093]
[1722352391670,0.55,3317.4,3316.7,3.6548093]
[1722352391875,0.55,3317.4,3316.7,3.6548393]
[1722352392662,0.55,3317.4,3316.7,0.6398093]
[1722352392867,0.55,3317.4,3316.6,3.07542568]
[1722352393048,0.59248895,3317.4,3316.6,0.06029568]
[1722352393248,2.677,3317.1,3316.2,0.301558]
[1722352393557,2.677,3317.1,3316.4,3.01527]
[1722352393729,2.677,3317.1,3316.3,3.01532]
[1722352393930,0.04248895,3317.0,3316.4,0.3316878]
[1722352394125,0.59248895,3317.0,3316.2,3.301558]
[1722352394582,0.59248895,3317.0,3316.3,0.06030097]
[1722352394740,0.55,3317.0,3316.4,3.0153]
[1722352394944,0.55,3317.0,3316.5,0.06030093]
[1722352395143,2.677,3317.5,3316.7,3.01503]
[1722352395350,2.677,3317.5,3316.8,0.301503]
[1722352395351,0.55,3317.4,3316.8,0.301503]
[1722352395659,0.55,3317.4,3316.5,2.48770093]
[1722352395979,0.55,3317.4,3316.7,3.01504]
[1722352396274,2.677,3317.9,3317.0,3.01473]
[1722352396458,0.78350507,3317.8,3317.0,0.06028926]
[1722352396664,2.677,3317.9,3317.0,3.38250719]
[1722352396864,0.78361511,3317.8,3317.0,3.38250719]
[1722352397051,2.677,3317.9,3317.0,3.38250719]
[1722352397402,2.3827,3318.0,3317.1,3.01462]
[1722352397597,2.3827,3318.0,3317.0,0.36780719]
[1722352397598,2.3827,3318.0,3317.2,3.07486472]
[1722352397896,2.677,3318.3,3317.3,3.01446]
[1722352398033,0.69105273,3318.2,3317.4,3.0144]
[1722352398230,2.677,3318.3,3317.4,6.02875]
[1722352398433,2.677,3318.3,3317.4,3.01435]
[1722352398686,0.04248895,3318.2,3317.4,3.01435]
[1722352398891,2.677,3318.3,3317.5,3.07458326]
[1722352399034,0.04248895,3318.2,3317.5,0.06028326]
[1722352399383,0.04248895,3318.2,3317.2,0.33823827]
[1722352399384,0.04248895,3318.2,3317.4,0.06027876]
[1722352399769,0.04248895,3318.2,3317.2,3.35278827]
[1722352399978,0.04248895,3318.2,3317.3,3.71149859]
[1722352400284,0.04248895,3318.2,3317.4,3.07467876]
[1722352400285,0.59248895,3318.2,3317.4,3.07467876]
[1722352400441,0.55,3318.2,3317.5,3.01426]
[1722352401037,0.55,3318.2,3317.4,0.06027876]
[1722352401038,0.55,3318.2,3317.6,3.01422]
[1722352401401,0.55,3318.2,3317.6,3.32160988]
[1722352401689,0.55,3318.2,3317.7,3.01411]
[1722352401839,0.55,3318.2,3317.9,3.01395]
[1722352402037,0.55,3318.2,3317.7,3.01411]
[1722352402038,0.04248895,3318.6,3317.8,3.07428409]
[1722352402294,0.59248895,3318.6,3317.8,0.06027409]
[1722352402581,0.59248895,3318.6,3317.6,0.30744988]
[1722352402582,2.677,3318.3,3317.6,0.30744988]
[1722352402736,0.04248895,3318.2,3317.5,3.0143]
[1722352402936,0.04248895,3318.2,3317.3,0.63673983]
[1722352402937,0.55,3318.2,3317.8,3.01402]
[1722352403150,2.677,3318.7,3317.8,3.07429596]
[1722352403389,0.55,3318.6,3317.8,3.01402]
[1722352403670,0.55,3318.6,3317.4,0.06027422]
[1722352403671,0.04248895,3318.5,3317.7,3.01413]
[1722352403872,0.04248895,3318.5,3317.8,0.06027422]
[1722352404283,0.55,3318.6,3317.8,3.07430422]
[1722352404576,0.55,3318.6,3317.8,3.07431422]
[1722352404790,0.59248895,3318.6,3317.8,0.06027422]
[1722352405170,0.59248895,3318.6,3317.7,0.301413]
[1722352405359,0.59248895,3318.6,3317.4,6.01435]
[1722352405792,0.55,3318.6,3317.8,3.01396]
[1722352405987,0.55,3318.6,3317.9,3.0741615]
[1722352406187,0.55,3318.6,3318.0,3.01385]
[1722352406508,0.55,3318.6,3318.1,0.36768366]
[1722352406799,2.677,3319.1,3318.4,3.01348]
[1722352407083,0.04248895,3319.1,3318.5,0.0602615]
[1722352407987,2.71948895,3319.1,3318.3,3.01356]
[1722352408203,2.71948895,3319.1,3318.2,3.01368]
[1722352408496,2.71948895,3319.1,3318.1,2.74981215]
[1722352408497,2.71948895,3319.1,3318.1,6.33483215]
[1722352408639,0.55,3319.0,3318.1,6.33482215]
[1722352408842,0.04248895,3318.9,3318.2,0.63348222]
[1722352409039,0.04248895,3318.9,3317.9,3.01391]
[1722352409342,0.04248895,3318.9,3317.7,5.36897]
[1722352409557,2.677,3318.3,3317.4,3.0]
[1722352409757,2.677,3318.3,3317.5,0.60518398]
[1722352409990,0.04248895,3318.2,3317.5,0.60518398]
[1722352410169,0.59248895,3318.2,3317.1,3.01462]
[1722352410580,0.59248895,3318.2,3316.9,8.40522]
[1722352410581,2.677,3317.8,3316.9,8.40522]
[1722352410817,0.55,3317.7,3316.9,5.39041]
[1722352410950,0.55,3317.7,3316.3,3.01536]
[1722352410951,2.677,3317.4,3316.3,3.01536]
[1722352411149,2.677,3317.4,3316.5,3.0152]
[1722352411475,2.677,3317.4,3316.4,0.301536]
[1722352411679,2.677,3317.4,3316.6,3.01513]
[1722352412043,2.677,3317.4,3316.7,3.01503]
[1722352412295,2.677,3317.4,3316.7,3.01496]
[1722352412606,2.677,3317.4,3316.8,0.301496]
[1722352412743,3.09098895,3317.7,3316.9,3.01478]
[1722352412944,0.55,3317.7,3316.9,3.01478]
[1722352413148,2.677,3317.8,3317.0,3.0750034]
[1722352413404,2.43478895,3318.2,3317.0,0.0602834]
[1722352413405,5.0693,3318.2,3317.0,0.0602834]
[1722352413590,5.61871895,3318.2,3317.2,3.01458]
[1722352413748,5.11178895,3318.2,3317.3,0.06028086]
[1722352413944,5.11178895,3318.2,3317.3,3.07472086]
[1722352414248,5.0693,3318.2,3317.4,0.06028087]
[1722352414451,5.0693,3318.2,3317.4,0.30747009]
[1722352414758,0.55,3318.1,3317.4,3.01434]
[1722352415169,0.55,3318.1,3317.4,0.06028058]
[1722352415360,0.59248895,3318.1,3317.4,0.06028058]
[1722352415572,0.59248895,3318.1,3317.2,3.01458]
[1722352415942,0.55,3318.1,3317.3,3.07470088]
[1722352416150,0.55,3318.1,3317.4,0.60892809]
[1722352416349,0.55,3318.1,3317.4,0.66920893]
[1722352416879,0.59248895,3318.1,3317.1,3.01462]
[1722352417333,0.59248895,3318.1,3317.2,3.01458]
[1722352417489,0.59248895,3318.1,3317.1,3.01461]
[1722352417490,0.55,3318.1,3317.3,3.07477089]
[1722352417835,0.55,3318.1,3317.3,0.06028089]
[1722352418342,0.55,3318.1,3317.3,3.07472089]
[1722352418506,0.55,3318.1,3317.1,6.02922]
[1722352418848,0.55,3318.1,3317.2,0.602922]
[1722352418993,0.55,3318.1,3317.2,3.617502]
[1722352419199,0.55,3318.1,3317.3,0.06028088]
[1722352419504,0.55,3318.1,3317.2,3.617502]
[1722352420035,0.55,3318.1,3317.2,0.602922]
[1722352420234,0.55,3318.1,3317.3,0.3617552]
[1722352420399,3.60626895,3318.1,3317.3,0.05120623]
[1722352420600,0.59248895,3318.1,3317.3,0.05120623]
[1722352421040,2.677,3317.8,3317.3,0.05120623]
[1722352421239,0.55,3317.7,3317.3,0.05120623]
[1722352422824,0.59248895,3317.7,3317.3,0.05120623]
[1722352423138,0.55,3317.7,3317.3,0.05120623]
[1722352423322,0.55,3317.7,3317.3,0.35779185]
[1722352423527,2.677,3317.8,3317.4,0.06028614]
[1722352423777,2.677,3317.8,3317.3,0.05120623]
[1722352424482,2.71948895,3318.2,3317.3,0.05120623]
[1722352424768,0.55,3318.1,3317.3,0.05120623]
[1722352424942,0.55,3318.1,3317.4,0.30657662]
[1722352425356,0.55,3318.1,3317.5,0.0602809]
[1722352425527,2.677,3318.2,3317.6,3.01417]
[1722352425723,2.677,3318.2,3317.7,0.06027548]
[1722352426368,2.677,3318.2,3317.4,3.0144]
[1722352426584,2.71948895,3318.2,3317.4,0.60801062]
[1722352427290,2.71948895,3318.2,3317.3,0.05120623]
[1722352427291,0.55,3318.1,3317.3,0.05120623]
[1722352427429,0.04248895,3318.0,3317.3,0.05120623]
[1722352428232,3.05637895,3318.0,3317.3,0.05120623]
[1722352428629,2.677,3317.8,3317.3,0.05120623]
[1722352428834,2.3676,3317.6,3317.3,0.05120623]
[1722352429031,0.04248895,3317.5,3317.3,0.05120623]
[1722352429277,0.55,3317.5,3317.3,0.05120623]
[1722352429583,8.05832,3318.2,3317.3,0.05120623]
[1722352429731,3.60625895,3318.1,3317.3,0.35778885]
[1722352429936,3.60625895,3318.1,3317.3,0.05120623]
[1722352430160,3.01402,3317.9,3317.3,0.05120623]
[1722352430332,0.59248895,3317.8,3317.3,0.05120623]
[1722352430663,0.04248895,3317.7,3317.3,0.05120623]
[1722352430872,3.05666895,3317.7,3317.3,0.05120623]
[1722352431173,2.677,3317.4,3317.3,0.05120623]
[1722352431372,2.71948895,3317.4,3317.3,0.05120623]
[1722352431528,3.26948895,3317.4,3317.3,0.05120623]
[1722352432994,3.227,3317.4,3317.3,0.05120623]
[1722352434468,6.28388895,3317.4,3317.3,0.05120623]
[1722352435692,10.47446085,3317.4,3317.3,0.05120623]
[1722352436106,11.16513907,3317.4,3317.3,0.05120623]
[1722352437005,8.15073907,3317.4,3317.3,0.05120623]
[1722352437306,3.26948895,3317.4,3317.3,0.05120623]
[1722352437459,2.677,3317.4,3317.3,0.05120623]
[1722352437658,0.04248895,3317.5,3317.3,0.05120623]
[1722352438675,0.59248895,3317.5,3317.3,0.05120623]
[1722352439062,0.55,3317.5,3317.3,0.05120623]
[1722352439577,0.59248895,3317.7,3317.3,0.05120623]
[1722352439805,3.60661895,3317.7,3317.3,0.05120623]
[1722352440034,2.677,3317.4,3317.3,0.05120623]
[1722352440330,3.227,3317.4,3317.3,0.05120623]
[1722352441209,3.26948895,3317.4,3317.3,0.05120623]
[1722352441554,3.26948895,3317.4,3317.3,0.02936127]
[1722352442260,6.28388895,3317.4,3317.3,0.02936127]
[1722352442554,3.26948895,3317.4,3317.3,0.02936127]
[1722352443094,3.227,3317.4,3317.3,0.02936127]
[1722352443522,3.26948895,3317.4,3317.3,0.02936127]
[1722352443895,6.28388895,3317.4,3317.3,0.02936127]
[1722352444338,3.26948895,3317.4,3317.3,0.02936127]
[1722352444542,3.227,3317.4,3317.3,0.02936127]
[1722352444748,0.55,3317.4,3317.3,0.02936127]
[1722352445048,2.677,3317.8,3317.3,0.02936127]
[1722352445049,0.55,3317.7,3317.3,0.02936127]
[1722352445546,0.59248895,3317.7,3317.3,0.02936127]
[1722352446401,2.677,3317.8,3317.3,0.02936127]
[1722352447236,2.677,3317.8,3317.3,0.3337634]
[1722352447596,3.05616895,3318.2,3317.3,0.3337634]
[1722352447597,2.71948895,3318.2,3317.3,0.39404617]
[1722352447895,0.55,3318.1,3317.5,3.01431]
[1722352448095,0.55,3318.1,3317.6,0.36170868]
[1722352449058,0.55,3318.1,3317.6,0.301431]
[1722352449347,0.55,3318.1,3317.4,2.4573]
[1722352450005,0.55,3318.1,3317.3,0.02936127]
[1722352450201,2.677,3317.8,3317.3,0.02936127]
[1722352450536,0.59248895,3317.7,3317.3,0.02936127]
[1722352451825,2.677,3317.4,3317.3,0.02936127]
[1722352452014,2.98718895,3317.4,3317.3,0.02936127]
[1722352452216,6.55158895,3317.4,3317.3,0.02936127]
[1722352452426,12.50834608,3317.4,3317.3,0.02936127]
[1722352453016,8.80178895,3317.4,3317.3,0.02936127]
[1722352453200,5.78738895,3317.4,3317.3,0.02936127]
[1722352453405,0.55,3317.4,3317.3,0.02936127]
[1722352453628,3.60668895,3317.7,3317.3,0.02936127]
[1722352453836,0.55,3317.7,3317.3,0.02936127]
[1722352454106,0.04248895,3317.6,3317.3,0.02936127]
[1722352455206,3.01433,3317.5,3317.3,0.02936127]
[1722352455440,3.60688895,3317.4,3317.3,0.02936127]
[1722352455644,0.59248895,3317.4,3317.3,0.02936127]
[1722352457559,0.55,3317.4,3317.3,0.02936127]
[1722352457917,0.59248895,3317.7,3317.3,0.02936127]
[1722352458121,0.69189206,3317.6,3317.3,0.02936127]
[1722352458320,1.28438615,3317.5,3317.3,0.02936127]
[1722352458525,0.04248895,3317.5,3317.3,0.02936127]
[1722352458725,0.55,3317.4,3317.3,0.02936127]
[1722352458921,0.04248895,3317.6,3317.3,0.02936127]
[1722352460478,0.69189619,3317.5,3317.3,0.02936127]
[1722352460632,0.55,3317.4,3317.3,0.02936127]
[1722352461171,0.55,3317.7,3317.3,0.02936127]
[1722352461489,0.69188279,3317.6,3317.3,0.02936127]
[1722352461663,0.55,3317.5,3317.3,0.02936127]
[1722352462064,0.04248895,3317.6,3317.3,0.02936127]
[1722352462358,0.67084284,3317.6,3317.3,0.02936127]
[1722352462564,0.69182021,3317.5,3317.3,0.02936127]
[1722352462764,0.04248895,3317.4,3317.3,0.02936127]
[1722352463172,0.04248895,3317.6,3317.3,0.02936127]
[1722352464095,0.6918854,3317.5,3317.3,0.02936127]
[1722352464310,0.04248895,3317.6,3317.3,0.02936127]
[1722352464594,3.178,3318.2,3317.3,0.02936127]
[1722352464595,0.04248895,3317.9,3317.3,0.02936127]
[1722352464816,0.04248895,3317.9,3317.3,0.5683644]
[1722352464989,0.04248895,3318.2,3317.3,3.5827744]
[1722352465153,0.04248895,3318.2,3317.4,3.07459821]
[1722352465349,0.04248895,3318.2,3317.5,3.68003726]
[1722352465561,3.0136,3318.3,3317.5,0.66573726]
[1722352465859,3.01392,3318.0,3317.3,0.02936127]
[1722352466066,0.04248895,3317.9,3317.3,0.02936127]
[1722352466365,3.05648895,3317.9,3317.3,0.02936127]
[1722352466587,8.86874,3318.2,3317.3,0.02936127]
[1722352466588,0.04248895,3318.0,3317.3,0.02936127]
[1722352467060,0.04248895,3318.1,3317.3,0.5683494]
[1722352467265,2.677,3317.8,3317.3,0.02936127]
[1722352467524,3.01427,3317.6,3317.3,0.02936127]
[1722352467660,0.04248895,3317.5,3317.3,0.02936127]
[1722352468014,0.59248895,3317.5,3317.3,0.02936127]
[1722352468173,0.04248895,3317.5,3317.3,0.02936127]
[1722352468604,0.04248895,3317.6,3317.3,0.02936127]
[1722352469010,0.63417593,3317.5,3317.3,0.02936127]
[1722352469221,0.59248895,3317.4,3317.3,0.02936127]
[1722352469416,0.04248895,3317.4,3317.3,0.02936127]
[1722352469937,3.05672895,3317.6,3317.3,0.02936127]
[1722352470092,5.6914,3317.4,3317.3,0.02936127]
[1722352470421,9.93225986,3317.4,3317.3,0.02936127]
[1722352470632,6.91785986,3317.4,3317.3,0.02936127]
[1722352472215,3.90345986,3317.4,3317.3,0.02936127]
[1722352472410,6.91785986,3317.4,3317.3,0.02936127]
[1722352472611,8.26493614,3317.4,3317.3,0.02936127]
[1722352472972,11.27933614,3317.4,3317.3,0.02936127]
[1722352473213,8.26493614,3317.4,3317.3,0.02936127]
[1722352473604,5.25053614,3317.4,3317.3,0.02936127]
[1722352473805,8.26493614,3317.4,3317.3,0.02936127]
[1722352474479,5.25053614,3317.4,3317.3,0.02936127]
[1722352476198,8.26493614,3317.4,3317.3,0.02936127]
[1722352476586,5.25053614,3317.4,3317.3,0.02936127]
[1722352477085,3.90345986,3317.4,3317.3,0.02936127]
[1722352477294,3.86097091,3317.4,3317.3,0.02936127]
[1722352477497,6.91785986,3317.4,3317.3,0.02936127]
[1722352478231,9.93225986,3317.4,3317.3,0.02936127]
[1722352480184,18.55015986,3317.4,3317.3,0.02936127]
[1722352480508,20.40517585,3317.4,3317.3,0.02936127]
[1722352480820,17.39077585,3317.4,3317.3,0.02936127]
[1722352482129,17.39055371,3317.4,3317.3,0.02936127]
[1722352482486,8.77265371,3317.4,3317.3,0.02936127]
[1722352482691,3.90323772,3317.4,3317.3,0.02936127]
[1722352483328,3.31074877,3317.4,3317.3,0.02936127]
[1722352483738,2.677,3317.4,3317.3,0.02936127]
[1722352484317,6.32531638,3317.4,3317.3,0.02936127]
[1722352484628,3.86091638,3317.4,3317.3,0.02936127]
[1722352485335,3.227,3317.4,3317.3,0.02936127]
[1722352485488,6.93316353,3317.4,3317.3,0.02936127]
[1722352485688,3.86079975,3317.4,3317.3,0.02936127]
[1722352485886,3.9032887,3317.4,3317.3,0.02936127]
[1722352487147,6.9176887,3317.4,3317.3,0.02936127]
[1722352488158,3.26948895,3317.4,3317.3,0.02936127]
[1722352488365,3.86071891,3317.4,3317.3,0.02936127]
[1722352488869,3.227,3317.4,3317.3,0.02936127]
[1722352489206,3.86077562,3317.4,3317.3,0.02936127]
[1722352489449,3.227,3317.4,3317.3,0.02936127]
[1722352489751,3.86086089,3317.4,3317.3,0.02936127]
[1722352490142,3.227,3317.4,3317.3,0.02936127]
[1722352492125,3.86107553,3317.4,3317.3,0.02936127]
[1722352492544,3.227,3317.4,3317.3,0.02936127]
[1722352492782,3.86108403,3317.4,3317.3,0.02936127]
[1722352493119,3.227,3317.4,3317.3,0.02936127]
[1722352493431,3.86108638,3317.4,3317.3,0.02936127]
[1722352494052,3.90357533,3317.4,3317.3,0.02936127]
[1722352494368,7.91119586,3317.4,3317.3,0.02936127]
[1722352494580,10.92559586,3317.4,3317.3,0.02936127]
[1722352495740,10.92559586,3317.4,3317.3,0.01548397]
[1722352497723,7.91119586,3317.4,3317.3,0.01548397]
[1722352498007,3.86108638,3317.4,3317.3,0.01548397]
[1722352498223,1.18408638,3317.4,3317.3,0.01548397]
[1722352498386,0.63408638,3317.4,3317.3,0.01548397]
[1722352498862,6.1432957,3317.8,3317.3,0.01548397]
[1722352499061,3.01423,3317.6,3317.3,0.01548397]
[1722352499303,0.63435551,3317.5,3317.3,0.01548397]
[1722352499477,6.1432457,3317.8,3317.3,0.01548397]
[1722352499675,1.18452588,3317.7,3317.3,0.01548397]
[1722352499921,0.00448181,3318.0,3317.3,0.30446352]
[1722352500093,0.63448966,3317.9,3317.3,0.24417237]
[1722352500265,0.00448181,3318.0,3317.5,2.2779]
[1722352500463,0.00448181,3318.0,3317.6,0.06027778]
[1722352501163,0.00448181,3318.0,3317.6,0.0602778]
[1722352501363,0.00448181,3318.0,3317.9,3.01395]
[1722352501623,0.00448181,3318.0,3317.9,8.40776649]
[1722352501836,0.00448181,3318.0,3317.9,2.37986649]
[1722352501983,0.00448181,3318.0,3317.9,8.40776649]
[1722352502307,0.00448181,3318.0,3317.9,5.39381649]
[1722352502476,0.00448181,3318.0,3317.9,6.25798892]
[1722352503110,0.00448181,3318.0,3317.9,9.27193892]
[1722352503311,2.677,3319.9,3317.9,6.93838892]
[1722352503510,2.677,3320.3,3319.2,3.01276]
[1722352503693,2.677,3320.3,3319.3,3.07292412]
[1722352503895,2.677,3320.3,3319.3,0.06024412]
[1722352504098,2.677,3320.3,3319.3,3.07286412]
[1722352504410,2.677,3320.3,3319.4,0.30728641]
[1722352504779,2.677,3320.3,3319.4,3.31985641]
[1722352505394,2.677,3320.3,3319.4,0.30728641]
[1722352506267,2.677,3320.3,3319.3,0.06024412]
[1722352506512,2.677,3320.3,3319.3,3.07291412]
[1722352506706,2.677,3320.3,3319.3,0.06024412]
[1722352506866,0.55,3320.2,3319.4,3.01257]
[1722352507072,0.55,3320.2,3319.5,0.36752498]
[1722352507768,2.677,3320.7,3319.5,0.36752498]
[1722352508082,5.68848,3320.7,3319.5,0.36752498]
[1722352508396,2.677,3320.7,3319.6,3.01234]
[1722352508600,3.01626388,3321.0,3319.8,2.4275]
[1722352508772,2.677,3320.9,3319.9,0.30900801]
[1722352509509,2.677,3320.9,3319.9,3.32113801]
[1722352509684,2.677,3320.9,3320.0,3.01204]
[1722352510007,2.677,3320.9,3320.1,0.06023137]
[1722352510370,2.677,3320.9,3320.2,0.04102821]
[1722352510570,2.677,3320.9,3320.3,0.31131496]
[1722352510834,2.677,3320.9,3320.3,0.37154308]
[1722352511127,2.677,3320.9,3320.3,0.31131496]
[1722352511404,3.01169,3320.4,3320.2,0.04102821]
[1722352511539,2.677,3320.5,3320.2,0.04102821]
[1722352511540,3.05425895,3320.3,3320.2,0.04102821]
[1722352511894,0.61561485,3320.3,3320.2,0.04102821]
[1722352512046,4.17738485,3320.3,3320.2,0.04102821]
[1722352512391,1.16561485,3320.3,3320.2,0.04102821]
[1722352513103,4.17738485,3320.3,3320.2,0.04102821]
[1722352514381,1.16561485,3320.3,3320.2,0.04102821]
[1722352514589,0.59248895,3320.3,3320.2,0.04102821]
[1722352514891,0.04248895,3320.3,3320.2,0.04102821]
[1722352515391,0.55,3320.4,3320.2,0.04102821]
[1722352516337,3.01177,3320.3,3320.2,0.04102821]
[1722352516540,4.185647,3320.3,3320.2,0.04102821]
[1722352516853,1.173877,3320.3,3320.2,0.04102821]
[1722352517375,0.55,3320.3,3320.2,0.04102821]
[1722352517586,0.55,3320.4,3320.2,0.04102821]
[1722352518969,2.677,3320.9,3320.2,0.04102821]
[1722352519142,2.677,3320.9,3320.3,0.24147282]
[1722352519785,2.677,3320.9,3320.2,0.04102821]
[1722352519786,0.04248895,3320.8,3320.2,0.04102821]
[1722352520189,0.04248895,3320.8,3320.2,0.10126421]
[1722352520342,0.04248895,3320.8,3320.2,0.04102821]
[1722352520942,0.59248895,3320.8,3320.2,0.10125913]
[1722352521381,0.55,3320.8,3320.2,0.10125913]
[1722352521583,0.55,3320.8,3320.2,0.58972012]
[1722352521788,0.04248895,3320.7,3320.2,0.04102821]
[1722352521987,0.55,3320.7,3320.2,0.04102821]
[1722352522190,0.55,3320.7,3320.2,0.10125895]
[1722352522385,0.59248895,3320.8,3320.2,0.10125895]
[1722352522570,0.04248895,3320.7,3320.2,0.04102821]
[1722352522772,2.677,3320.5,3320.2,0.04102821]
[1722352523060,0.59248895,3320.4,3320.2,0.04102821]
[1722352523489,0.55,3320.4,3320.2,0.04102821]
[1722352523799,0.04248895,3320.8,3320.2,0.04102821]
[1722352524006,1.46719023,3320.8,3320.2,0.04102821]
[1722352524303,0.04248895,3320.7,3320.2,0.04102821]
[1722352524625,0.55,3320.7,3320.3,2.3639]
[1722352524762,0.31531319,3320.6,3320.3,2.3639]
[1722352526126,0.31531319,3320.6,3320.2,0.04102821]
[1722352527394,0.7072294,3320.6,3320.2,0.04102821]
[1722352527652,3.26948895,3320.5,3320.2,0.04102821]
[1722352527958,6.28114895,3320.5,3320.2,0.04102821]
[1722352528282,3.01177,3320.3,3320.2,0.04102821]
[1722352528483,3.56177,3320.3,3320.2,0.04102821]
[1722352528725,4.2448959,3320.3,3320.2,0.04102821]
[1722352528951,4.28738485,3320.3,3320.2,0.04102821]
[1722352529937,1.27561485,3320.3,3320.2,0.04102821]
[1722352530099,0.59248895,3320.3,3320.2,0.04102821]
[1722352530304,0.04248895,3320.3,3320.2,0.04102821]
[1722352530501,0.59248895,3320.4,3320.2,0.04102821]
[1722352530703,3.60418895,3320.4,3320.2,0.04102821]
[1722352530899,6.6516589,3320.3,3320.2,0.04102821]
[1722352531136,7.2016589,3320.3,3320.2,0.04102821]
[1722352531457,10.2134289,3320.3,3320.2,0.04102821]
[1722352531606,10.2134289,3320.3,3318.9,2.2903]
[1722352531607,3.01227,3319.8,3318.9,2.2903]
[1722352531783,2.677,3319.5,3318.9,2.2903]
[1722352531988,0.04248895,3319.4,3318.5,2.2903]
[1722352532229,0.59248895,3319.4,3318.5,2.2903]
[1722352532546,0.55,3319.4,3318.5,5.30364]
[1722352532689,0.55,3319.4,3318.7,3.01317]
[1722352533201,0.55,3319.4,3318.7,0.06025773]
[1722352533636,2.677,3319.9,3318.8,3.01308]
[1722352533788,0.55,3319.8,3318.9,0.06025174]
[1722352533987,0.55,3319.8,3319.0,3.01292]
[1722352534236,0.55,3319.8,3319.1,2.69986678]
[1722352534403,0.55,3319.8,3319.1,2.63961717]
[1722352534601,0.59248895,3319.8,3319.1,2.63961717]
[1722352534827,0.55,3319.8,3319.1,2.3323]
[1722352535835,3.60471895,3319.8,3319.1,2.3323]
[1722352535988,2.677,3319.5,3318.7,2.4726]
[1722352536184,0.59248895,3319.4,3318.7,2.4726]
[1722352537008,2.677,3319.5,3318.8,0.06025723]
[1722352537212,2.677,3319.9,3318.8,0.06025723]
[1722352537415,0.59248895,3319.8,3318.9,3.01297]
[1722352538001,3.01236,3319.7,3318.7,2.4726]
[1722352538248,0.59248895,3319.6,3318.7,2.4726]
[1722352538466,2.677,3319.5,3318.7,2.4726]
[1722352538616,0.55,3319.4,3318.7,2.4726]
[1722352538960,0.55,3319.4,3318.7,5.4858]
[1722352539105,0.55,3319.4,3318.8,0.54858]
[1722352539450,0.04248895,3319.3,3318.7,2.4726]
[1722352539659,0.59248895,3319.4,3318.7,2.4726]
[1722352539841,0.55,3319.4,3318.7,2.4726]
[1722352540004,0.31536975,3319.3,3318.7,2.4726]
[1722352540321,0.31536975,3319.3,3318.1,2.4838]
[1722352540322,0.59248895,3319.2,3318.1,2.4838]
[1722352540653,0.59248895,3319.2,3318.2,3.56199]
[1722352540865,3.60526895,3319.2,3318.3,3.0]
[1722352541025,2.677,3319.1,3318.2,3.54838]
[1722352541225,0.59248895,3319.0,3318.1,2.4838]
[1722352541457,2.677,3318.3,3317.3,2.45408397]
[1722352541655,2.677,3317.9,3317.3,2.45408397]
[1722352541960,0.59248895,3318.2,3317.3,0.01548397]
[1722352542159,0.59248895,3318.2,3317.3,0.31848337]
[1722352542337,0.59248895,3318.2,3317.3,0.01548397]
[1722352542537,0.55,3318.2,3317.3,0.07576218]
[1722352542739,0.59248895,3318.2,3317.3,0.01548397]
[1722352542984,0.59248895,3318.2,3317.3,3.09024455]
[1722352543338,0.55,3318.2,3317.3,3.09018455]
[1722352543549,0.59248895,3318.2,3317.4,0.30901846]
[1722352543738,0.55,3318.2,3317.5,3.07450878]
[1722352543937,5.69027,3318.7,3317.6,2.2966]
[1722352543938,0.04248895,3318.6,3317.6,2.2966]
[1722352544167,0.59248895,3318.6,3317.7,0.06027113]
[1722352544384,0.91943785,3318.6,3317.6,2.2966]
[1722352544758,2.677,3318.3,3317.4,0.30901846]
[1722352545085,0.55,3318.2,3317.5,3.01431]
[1722352545442,2.677,3318.7,3317.8,3.01398]
[1722352545648,2.677,3318.7,3318.0,3.01385]
[1722352545881,5.1013,3319.1,3318.1,0.66906771]
[1722352546189,0.04248895,3319.0,3318.1,0.66906771]
[1722352546486,2.677,3318.7,3317.8,35.0]
[1722352547185,0.59248895,3318.6,3317.6,3.0142]
[1722352547412,2.677,3318.3,3317.4,0.30901846]
[1722352547698,0.59248895,3318.2,3317.4,0.30901846]
[1722352547876,0.59248895,3318.2,3317.5,3.04901288]
[1722352548077,0.59248895,3318.2,3317.3,0.01548397]
[1722352548078,3.60616895,3318.2,3317.3,0.01548397]
[1722352548644,0.59248895,3318.2,3317.3,0.01548397]
[1722352548874,3.60617895,3318.2,3317.3,0.01548397]
[1722352549263,2.677,3317.9,3317.3,0.01548397]
[1722352549483,0.59248895,3317.8,3317.3,0.01548397]
[1722352550103,0.04248895,3317.7,3317.3,0.01548397]
[1722352550899,0.59248895,3317.8,3317.3,0.01548397]
[1722352551111,0.04248895,3317.7,3317.3,0.01548397]
[1722352551315,5.69132,3317.5,3317.3,0.01548397]
[1722352551593,6.62128895,3317.4,3317.3,0.01548397]
[1722352551949,3.60688895,3317.4,3317.3,0.01548397]
[1722352552513,0.59248895,3317.4,3317.3,0.01548397]
[1722352553353,0.55,3317.4,3317.3,0.01548397]
[1722352553748,0.04248895,3317.6,3317.3,0.01548397]
[1722352553749,0.55,3317.7,3317.3,0.01548397]
[1722352554002,0.59248895,3317.8,3317.3,0.01548397]
[1722352554373,0.55,3317.8,3317.3,0.01548397]
[1722352554904,5.1077,3318.7,3317.4,0.3030014]
[1722352555085,3.05585895,3318.6,3317.5,0.06027837]
[1722352555291,8.12097,3318.7,3317.5,3.07457837]
[1722352555603,0.3155084,3318.6,3317.5,0.06027837]
[1722352555805,0.3155084,3318.6,3317.5,3.07452837]
[1722352555956,1.15915624,3318.6,3317.5,0.70101274]
[1722352556157,3.01345,3318.5,3317.5,0.70101274]
[1722352556410,5.69063,3318.3,3317.3,0.01548397]
[1722352556668,0.04248895,3318.2,3317.3,0.01548397]
[1722352557093,3.60619895,3318.2,3317.3,0.01548397]